bitfinex-derivatives/quotes_SOLF0:USTF0_20260210
["timestamp","ask_amount","ask_price","bid_price","bid_amount"]
[1770710678914,8.0,84.659,84.621,19.42431318]
[1770710679116,10.6407,84.667,84.621,19.42431318]
[1770710679318,10.6407,84.667,84.63,3.58330128]
[1770710679917,10.6407,84.667,84.621,19.42431318]
[1770710679918,10.6413,84.663,84.621,19.42431318]
[1770710682821,20.08626607,84.662,84.621,19.42431318]
[1770710687520,20.08626607,84.662,84.63,3.58330128]
[1770710689022,20.08626607,84.662,84.621,19.42431318]
[1770710690717,17.23736757,84.66,84.613,177.15396077]
[1770710690920,17.23736757,84.66,84.62,3.5751401]
[1770710691519,17.23736757,84.66,84.575,21.96084955]
[1770710691520,17.23736757,84.629,84.576,18.58656077]
[1770710691727,17.23736757,84.619,84.564,18.58656077]
[1770710692022,17.23736757,84.619,84.542,236.32]
[1770710692023,17.23736757,84.609,84.552,18.58656077]
[1770710692719,17.23736757,84.599,84.552,18.58656077]
[1770710694927,27.88666757,84.599,84.545,247.52656077]
[1770710695229,165.5461,84.655,84.545,247.52656077]
[1770710695230,17.23736757,84.598,84.55,18.58656077]
[1770710695416,17.23736757,84.598,84.56,3.5751401]
[1770710697523,17.23736757,84.598,84.517,14.66147917]
[1770710697524,17.23736757,84.632,84.58,22.16170087]
[1770710697920,17.23736757,84.619,84.574,165.2]
[1770710698525,17.23736757,84.619,84.58,3.5751401]
[1770710701433,14.67302243,84.671,84.574,165.2]
[1770710701434,17.23736757,84.632,84.59,22.16170087]
[1770710701637,17.23736757,84.632,84.6,3.5751401]
[1770710701834,17.23736757,84.647,84.61,3.5751401]
[1770710702036,17.23736757,84.647,84.6,18.58656077]
[1770710702037,17.23736757,84.679,84.62,3.5751401]
[1770710702233,17.23736757,84.679,84.63,3.5751401]
[1770710703430,17.23736757,84.679,84.64,3.5751401]
[1770710703638,17.23736757,84.679,84.65,3.5751401]
[1770710704630,17.23736757,84.679,84.62,10.6465]
[1770710705330,17.57286362,84.71,84.617,136.38]
[1770710705331,17.23736757,84.675,84.617,136.38]
[1770710706731,17.23736757,84.669,84.618,18.58656077]
[1770710706929,17.23736757,84.707,84.618,18.58656077]
[1770710707637,17.23736757,84.676,84.61,9.57286362]
[1770710707934,17.23736757,84.676,84.611,18.58656077]
[1770710709536,27.87696757,84.676,84.621,18.58656077]
[1770710710738,27.87696757,84.676,84.574,21.96084955]
[1770710710739,17.23736757,84.644,84.593,18.58656077]
[1770710710936,17.23736757,84.644,84.545,21.96084955]
[1770710710937,17.23736757,84.644,84.579,18.58656077]
[1770710711936,9.57286362,84.66,84.579,18.58656077]
[1770710711937,17.23736757,84.642,84.579,18.58656077]
[1770710712636,17.23736757,84.634,84.579,18.58656077]
[1770710716638,10.6456,84.629,84.579,18.58656077]
[1770710716848,17.23736757,84.628,84.566,10.6533]
[1770710717841,17.23736757,84.623,84.566,10.6533]
[1770710718347,17.23736757,84.612,84.557,10.6545]
[1770710719839,20.55859988,84.64,84.557,10.6545]
[1770710719840,17.6645658,84.609,84.557,10.6545]
[1770710720149,17.6645658,84.609,84.557,27.49125633]
[1770710720452,17.6645658,84.609,84.558,16.83675633]
[1770710722554,16.47284402,84.594,84.554,117.4]
[1770710722752,16.47284402,84.594,84.492,17.0974095]
[1770710722943,16.47284402,84.594,84.521,17.0974095]
[1770710724755,10.6519,84.579,84.521,17.0974095]
[1770710725154,16.47284402,84.578,84.521,17.0974095]
[1770710725856,10.6505,84.589,84.523,17.0974095]
[1770710726853,10.6513,84.583,84.523,17.0974095]
[1770710727053,16.47284402,84.582,84.523,17.0974095]
[1770710727655,10.6521,84.577,84.523,17.0974095]
[1770710728361,10.6523,84.575,84.523,17.0974095]
[1770710729959,16.47284402,84.574,84.523,17.0974095]
[1770710733780,16.47284402,84.574,84.525,17.0974095]
[1770710733981,16.47284402,84.587,84.525,17.0974095]
[1770710734272,16.47284402,84.587,84.547,17.0974095]
[1770710736064,8.0,84.616,84.547,17.0974095]
[1770710736065,16.47284402,84.598,84.547,17.0974095]
[1770710738079,10.6483,84.607,84.547,17.0974095]
[1770710738277,8.0,84.639,84.497,35.48]
[1770710738278,8.66120771,84.638,84.553,17.0974095]
[1770710738581,8.66120771,84.638,84.55,9.57286362]
[1770710738582,16.47284402,84.624,84.571,17.0974095]
[1770710740482,10.6454,84.63,84.571,17.0974095]
[1770710740685,10.6454,84.63,84.575,17.0974095]
[1770710741183,16.47284402,84.638,84.575,17.0974095]
[1770710742877,16.47284402,84.618,84.575,17.0974095]
[1770710743289,16.47284402,84.618,84.56,9.57286362]
[1770710743586,16.47284402,84.618,84.561,17.0974095]
[1770710743779,16.47284402,84.608,84.561,17.0974095]
[1770710746290,16.47284402,84.608,84.563,17.0974095]
[1770710746485,16.47284402,84.618,84.563,17.0974095]
[1770710747776,16.47284402,84.631,84.581,17.0974095]
[1770710747978,14.67302243,84.68,84.581,17.0974095]
[1770710747979,16.47284402,84.662,84.581,17.0974095]
[1770710748284,16.47284402,84.662,84.607,17.0974095]
[1770710749400,16.47284402,84.662,84.61,17.0974095]
[1770710750689,16.47284402,84.662,84.614,10.6472]
[1770710750891,16.58312639,84.679,84.615,15.99351196]
[1770710751790,16.58312639,84.679,84.617,15.99351196]
[1770710752784,16.58312639,84.679,84.614,94.34]
[1770710752785,16.58312639,84.679,84.62,15.99351196]
[1770710753779,16.58312639,84.679,84.626,15.99351196]
[1770710754487,16.58312639,84.69,84.631,15.99351196]
[1770710755386,9.57408117,84.72,84.585,15.99351196]
[1770710755387,16.58312639,84.65,84.585,15.99351196]
[1770710756892,16.58312639,84.647,84.585,15.99351196]
[1770710757787,16.58312639,84.639,84.585,15.99351196]
[1770710759688,16.58312639,84.637,84.585,15.99351196]
[1770710760282,16.58312639,84.637,84.53,35.48]
[1770710760283,16.58312639,84.635,84.555,15.99351196]
[1770710760883,16.58312639,84.612,84.555,15.99351196]
[1770710761594,16.58312639,84.603,84.555,15.99351196]
[1770710761785,16.58312639,84.62,84.555,15.99351196]
[1770710762087,10.6471,84.616,84.555,15.99351196]
[1770710762288,16.58312639,84.615,84.555,15.99351196]
[1770710763492,9.57408117,84.64,84.555,15.99351196]
[1770710763493,16.58312639,84.613,84.556,15.99351196]
[1770710764088,16.58312639,84.61,84.556,15.99351196]
[1770710765592,10.6469,84.618,84.559,10.6543]
[1770710765790,10.6469,84.618,84.56,15.99351196]
[1770710766793,10.6469,84.618,84.562,15.99351196]
[1770710767792,27.23182639,84.604,84.562,15.99351196]
[1770710768186,16.58312639,84.618,84.562,15.99351196]
[1770710769694,10.6475,84.614,84.562,15.99351196]
[1770710770400,16.58312639,84.618,84.562,15.99351196]
[1770710771301,16.58312639,84.615,84.562,15.99351196]
[1770710771702,9.57408117,84.64,84.562,15.99351196]
[1770710771703,16.58312639,84.639,84.562,15.99351196]
[1770710771995,16.58312639,84.637,84.564,15.99351196]
[1770710772302,16.58312639,84.635,84.564,15.99351196]
[1770710772489,16.58312639,84.625,84.567,15.99351196]
[1770710773494,16.58312639,84.621,84.568,26.64651196]
[1770710773700,16.58312639,84.621,84.569,15.99351196]
[1770710774093,8.0,84.636,84.563,149.26]
[1770710774094,16.58312639,84.63,84.572,15.99351196]
[1770710774503,10.6455,84.629,84.58,26.64511196]
[1770710775100,10.6455,84.629,84.581,15.99351196]
[1770710776500,10.6442,84.639,84.583,15.99351196]
[1770710776695,16.58312639,84.638,84.583,15.99351196]
[1770710777100,16.58312639,84.628,84.579,110.92]
[1770710778306,10.6461,84.625,84.579,110.92]
[1770710778502,16.58312639,84.628,84.579,110.92]
[1770710778707,16.58312639,84.628,84.58,15.99351196]
[1770710779804,16.58312639,84.628,84.582,16.07885827]
[1770710790319,16.58312639,84.628,84.581,10.6514]
[1770710790320,15.30564983,84.612,84.561,15.13854771]
[1770710791123,15.30564983,84.609,84.564,10.6535]
[1770710792710,15.30564983,84.609,84.564,25.79204771]
[1770710793821,15.30564983,84.609,84.565,15.13854771]
[1770710794019,10.6469,84.618,84.571,15.13854771]
[1770710794224,15.30564983,84.636,84.6,3.58007611]
[1770710794724,15.30564983,84.636,84.591,15.13854771]
[1770710795623,15.30564983,84.634,84.591,15.13854771]
[1770710796818,10.6453,84.631,84.591,15.13854771]
[1770710806028,10.6452,84.632,84.591,15.13854771]
[1770710806429,10.644,84.641,84.592,10.65]
[1770710806625,10.644,84.641,84.611,15.13854771]
[1770710808130,15.30564983,84.661,84.621,15.13854771]
[1770710808526,15.30564983,84.674,84.63,3.58007611]
[1770710808726,10.6407,84.668,84.63,18.71862382]
[1770710808928,3.58007611,84.69,84.64,3.58007611]
[1770710808929,15.30564983,84.686,84.64,3.58007611]
[1770710809133,3.58007611,84.69,84.64,3.58007611]
[1770710809134,15.30564983,84.684,84.64,3.58007611]
[1770710809932,15.30564983,84.684,84.64,18.34040459]
[1770710811032,15.30564983,84.684,84.65,3.58007611]
[1770710811425,23.15636798,84.706,84.66,3.58007611]
[1770710811630,14.68679616,84.706,84.67,3.58007611]
[1770710812434,14.68679616,84.706,84.67,3.57086323]
[1770710812838,14.68679616,84.706,84.67,3.5708867]
[1770710813231,14.68679616,84.719,84.67,18.33121518]
[1770710813732,14.68679616,84.719,84.68,3.5708867]
[1770710813938,14.68679616,84.719,84.68,18.33121518]
[1770710814127,14.68679616,84.719,84.69,3.5708867]
[1770710814738,10.98573626,84.772,84.69,3.5708867]
[1770710814739,14.68679616,84.736,84.69,18.33121518]
[1770710814930,14.68679616,84.736,84.69,14.76032848]
[1770710815335,25.31729616,84.749,84.69,14.76032848]
[1770710815834,14.68679616,84.749,84.692,14.76032848]
[1770710816635,14.68679616,84.749,84.694,14.76032848]
[1770710817031,14.68679616,84.765,84.696,14.76032848]
[1770710817245,14.68679616,84.787,84.722,14.76032848]
[1770710817535,14.68679616,84.787,84.668,165.5201]
[1770710817536,14.68679616,84.769,84.685,14.76032848]
[1770710817936,14.68679616,84.769,84.701,14.76032848]
[1770710818840,14.68679616,84.765,84.705,14.76032848]
[1770710821642,14.68679616,84.765,84.709,14.76032848]
[1770710821843,14.68679616,84.779,84.721,14.76032848]
[1770710822945,14.68679616,84.779,84.672,165.5113]
[1770710822946,14.68679616,84.749,84.659,14.76032848]
[1770710823139,14.68679616,84.729,84.642,14.76032848]
[1770710823343,14.68679616,84.708,84.642,14.76032848]
[1770710824955,14.68679616,84.706,84.642,14.76032848]
[1770710827351,14.68679616,84.704,84.642,14.76032848]
[1770710831647,10.6364,84.702,84.642,14.76032848]
[1770710832157,10.6366,84.7,84.642,14.76032848]
[1770710832357,14.68679616,84.699,84.642,14.76032848]
[1770710835156,14.68679616,84.697,84.642,14.76032848]
[1770710835356,3.57302978,84.69,84.642,14.76032848]
[1770710838356,14.68679616,84.679,84.627,14.76032848]
[1770710839364,3.57302978,84.67,84.627,14.76032848]
[1770710841365,10.6398,84.674,84.627,14.76032848]
[1770710841768,25.55096409,84.674,84.627,14.76032848]
[1770710842762,14.91116409,84.674,84.64,3.57302978]
[1770710843066,25.81208226,84.687,84.64,17.99201915]
[1770710843567,15.17388226,84.686,84.64,17.99201915]
[1770710844667,10.6372,84.696,84.65,3.57302978]
[1770710844968,15.17388226,84.695,84.64,17.99201915]
[1770710845670,15.17388226,84.695,84.652,10.6425]
[1770710847571,3.57302978,84.69,84.644,14.41898937]
[1770710847773,18.74691204,84.68,84.633,94.26]
[1770710847973,18.74691204,84.68,84.63,14.41898937]
[1770710848769,15.17388226,84.675,84.63,14.41898937]
[1770710849567,15.17388226,84.669,84.63,14.41898937]
[1770710850971,3.57302978,84.68,84.631,14.41898937]
[1770710851167,10.6386,84.684,84.631,14.41898937]
[1770710851679,25.81248226,84.684,84.631,14.41898937]
[1770710852278,25.81248226,84.684,84.64,3.57302978]
[1770710852881,15.17388226,84.683,84.64,3.57302978]
[1770710853080,15.17388226,84.683,84.632,10.6451]
[1770710853282,15.17388226,84.683,84.633,14.41898937]
[1770710855981,15.17388226,84.683,84.64,17.99201915]
[1770710858586,10.6389,84.681,84.64,14.41898937]
[1770710860882,10.6389,84.681,84.64,17.99201915]
[1770710867183,15.17388226,84.683,84.642,14.41898937]
[1770710867487,10.6375,84.693,84.651,14.41898937]
[1770710867684,8.52378641,84.692,84.651,14.41898937]
[1770710867988,8.52378641,84.691,84.651,14.41898937]
[1770710868190,8.52378641,84.69,84.651,14.41898937]
[1770710868486,8.52378641,84.689,84.651,14.41898937]
[1770710868690,11.01364077,84.702,84.651,14.41898937]
[1770710868691,11.01364077,84.717,84.651,14.41898937]
[1770710868880,15.17388226,84.72,84.681,14.41898937]
[1770710869077,15.17388226,84.739,84.7,3.57302978]
[1770710869277,15.17388226,84.739,84.7,17.99201915]
[1770710869889,13.74161373,84.759,84.71,3.57302978]
[1770710870194,13.74161373,84.759,84.72,3.57302978]
[1770710870388,13.74161373,84.759,84.721,14.19454591]
[1770710870688,3.57302978,84.78,84.73,3.57302978]
[1770710870689,13.74161373,84.774,84.73,3.57302978]
[1770710870890,13.74161373,84.774,84.74,3.57302978]
[1770710872886,13.74161373,84.774,84.74,3.56494361]
[1770710873388,13.74161373,84.772,84.72,10.634]
[1770710873689,13.74161373,84.772,84.73,3.56494361]
[1770710875391,3.56494361,84.76,84.71,3.56494361]
[1770710875595,13.74161373,84.759,84.71,3.56494361]
[1770710877583,13.74161373,84.759,84.71,17.75948952]
[1770710879287,13.74161373,84.759,84.713,10.6348]
[1770710879488,13.74161373,84.759,84.72,3.56494361]
[1770710879894,13.74161373,84.767,84.721,14.19454591]
[1770710880087,13.74161373,84.767,84.73,3.56494361]
[1770710880294,13.74161373,84.767,84.74,3.56494361]
[1770710880495,24.36821373,84.78,84.74,3.56494361]
[1770710880996,13.74161373,84.779,84.73,17.75948952]
[1770710881796,13.74161373,84.773,84.73,17.75948952]
[1770710882193,13.74161373,84.773,84.73,3.56494361]
[1770710882395,13.74161373,84.773,84.722,10.6337]
[1770710882396,13.74161373,84.768,84.717,14.19454591]
[1770710882696,13.74161373,84.768,84.711,10.6351]
[1770710883092,13.74161373,84.759,84.711,10.6351]
[1770710883691,13.74161373,84.759,84.71,3.56494361]
[1770710884095,13.74161373,84.759,84.647,35.46]
[1770710884096,3.56494361,84.75,84.7,3.56494361]
[1770710884301,13.74161373,84.749,84.69,3.56494361]
[1770710885102,13.74161373,84.729,84.687,14.19454591]
[1770710886100,13.74161373,84.729,84.691,14.19454591]
[1770710886695,3.56494361,84.74,84.691,14.19454591]
[1770710886888,13.74161373,84.742,84.7,3.56494361]
[1770710887092,13.74161373,84.742,84.7,17.75948952]
[1770710887794,13.74161373,84.742,84.701,14.19454591]
[1770710889601,24.37131373,84.755,84.71,3.56494361]
[1770710889795,13.74161373,84.754,84.71,3.56494361]
[1770710889993,13.74161373,84.754,84.704,10.6359]
[1770710890395,13.74161373,84.754,84.701,14.19454591]
[1770710890396,13.74161373,84.754,84.707,10.6356]
[1770710890596,13.74161373,84.754,84.708,14.19454591]
[1770710893305,13.74161373,84.754,84.71,3.56494361]
[1770710896600,3.56494361,84.75,84.708,14.19454591]
[1770710896904,3.56494361,84.75,84.7,3.56494361]
[1770710896905,13.74161373,84.749,84.7,3.56494361]
[1770710897103,11.01364077,84.802,84.699,10.6366]
[1770710897104,13.74161373,84.739,84.699,10.6366]
[1770710900904,13.74161373,84.739,84.693,14.19454591]
[1770710901108,3.56494361,84.74,84.691,10.6376]
[1770710901109,13.85983394,84.734,84.691,10.6376]
[1770710901305,13.85983394,84.729,84.681,13.85018089]
[1770710902509,13.85983394,84.729,84.662,207.04]
[1770710902510,13.85983394,84.729,84.691,13.78988308]
[1770710906815,15.12219685,84.742,84.7,17.35482669]
[1770710912814,15.12219685,84.77,84.73,3.56494361]
[1770710913323,15.12219685,84.77,84.731,13.78988308]
[1770710913511,15.12219685,84.783,84.74,3.56494361]
[1770710913913,15.12219685,84.783,84.731,13.78988308]
[1770710914812,15.12219685,84.783,84.732,10.6324]
[1770710915018,15.12219685,84.779,84.724,94.2]
[1770710915417,15.12219685,84.778,84.724,94.2]
[1770710915616,15.12219685,84.769,84.72,3.56494361]
[1770710915821,35.46,84.805,84.708,13.78988308]
[1770710915822,15.12219685,84.759,84.71,3.56494361]
[1770710916819,15.12219685,84.758,84.71,3.56494361]
[1770710917215,15.12219685,84.758,84.711,13.78988308]
[1770710917415,15.12219685,84.758,84.72,3.56494361]
[1770710918724,15.12219685,84.758,84.712,10.6349]
[1770710919125,15.12219685,84.758,84.686,14.6668933]
[1770710919126,15.12219685,84.741,84.69,17.35482669]
[1770710919327,22.60610481,84.781,84.69,17.35482669]
[1770710919328,15.12219685,84.739,84.69,17.35482669]
[1770710920726,15.12219685,84.736,84.69,17.35482669]
[1770710920926,15.12219685,84.736,84.69,13.78988308]
[1770710921119,15.12219685,84.736,84.684,13.78988308]
[1770710921528,15.12219685,84.736,84.69,3.56494361]
[1770710922728,10.6325,84.733,84.69,3.56494361]
[1770710923925,10.6325,84.733,84.69,17.35482669]
[1770710924631,15.12219685,84.729,84.68,10.6389]
[1770710924827,15.12219685,84.729,84.68,14.20384361]
[1770710925024,15.12219685,84.729,84.69,3.56494361]
[1770710925328,15.12219685,84.729,84.691,13.78988308]
[1770710925624,15.12219685,84.739,84.692,10.6375]
[1770710926228,15.12219685,84.739,84.693,13.78988308]
[1770710927627,15.12219685,84.739,84.694,24.42708308]
[1770710930025,13.95947522,84.729,84.683,10.6386]
[1770710930218,13.95947522,84.747,84.684,14.88492306]
[1770710930424,13.95947522,84.747,84.71,3.56494361]
[1770710931126,13.95947522,84.747,84.71,3.56761396]
[1770710931429,13.95947522,84.747,84.701,14.88492306]
[1770710932433,13.95947522,84.739,84.691,14.88492306]
[1770710932834,13.95947522,84.738,84.691,14.88492306]
[1770710933332,10.6321,84.736,84.691,14.88492306]
[1770710933531,13.95947522,84.735,84.691,14.88492306]
[1770710936444,10.6324,84.734,84.691,14.88492306]
[1770710936746,13.95947522,84.733,84.691,14.88492306]
[1770710938548,13.95947522,84.723,84.679,245.12492306]
[1770710938741,3.56965946,84.72,84.679,230.24]
[1770710938945,3.56965946,84.69,84.64,14.88492306]
[1770710939147,10.92718132,84.728,84.64,14.88492306]
[1770710939148,10.6394,84.677,84.64,14.88492306]
[1770710939658,13.95947522,84.679,84.64,14.88492306]
[1770710939942,11.81,84.8,84.629,195.7]
[1770710939943,13.95947522,84.659,84.629,195.7]
[1770710940135,13.95947522,84.659,84.612,247.38492306]
[1770710940847,24.60257522,84.649,84.612,232.5]
[1770710941055,24.60257522,84.649,84.596,14.88492306]
[1770710941056,13.95947522,84.639,84.596,14.88492306]
[1770710941248,13.95947522,84.639,84.59,3.56965946]
[1770710941638,13.95947522,84.629,84.564,14.6668933]
[1770710941843,13.95947522,84.629,84.495,11.81]
[1770710941844,3.56965946,84.62,84.571,14.88492306]
[1770710942051,13.95947522,84.623,84.58,3.56965946]
[1770710943254,13.95947522,84.623,84.59,3.56965946]
[1770710943441,10.6447,84.635,84.59,3.56965946]
[1770710943846,13.95947522,84.637,84.6,3.56965946]
[1770710944350,13.95947522,84.653,84.61,3.56965946]
[1770710944541,13.95947522,84.669,84.62,3.56965946]
[1770710946843,24.59807522,84.684,84.622,12.96648232]
[1770710947045,24.59807522,84.684,84.624,12.96648232]
[1770710948446,11.02538638,84.732,84.6,9.57178664]
[1770710948447,13.95947522,84.698,84.641,12.97289365]
[1770710948650,13.95947522,84.698,84.643,12.97289365]
[1770710948851,13.95947522,84.729,84.661,12.97289365]
[1770710949858,24.59357522,84.72,84.661,12.97289365]
[1770710950058,13.95947522,84.719,84.661,12.97289365]
[1770710951058,13.95947522,84.736,84.681,12.97023966]
[1770710951454,13.95947522,84.769,84.682,12.97134996]
[1770710951656,13.95947522,84.769,84.7,9.57178664]
[1770710951960,13.95947522,84.769,84.7,22.5431366]
[1770710952164,13.95947522,84.746,84.682,12.97134996]
[1770710953057,13.95947522,84.746,84.701,12.98688444]
[1770710953255,13.95947522,84.788,84.701,12.98688444]
[1770710953955,13.95947522,84.785,84.701,12.98688444]
[1770710954862,10.6289,84.761,84.701,12.98688444]
[1770710955165,10.6289,84.761,84.661,35.46]
[1770710955166,13.95947522,84.78,84.721,13.16127401]
[1770710955356,13.95947522,84.78,84.723,13.16224186]
[1770710955963,13.95947522,84.809,84.741,13.16224186]
[1770710956362,13.95947522,84.809,84.743,10.6311]
[1770710957069,13.95947522,84.809,84.744,13.07205465]
[1770710957865,13.95947522,84.806,84.731,13.07304532]
[1770710958166,13.95947522,84.806,84.72,9.57178664]
[1770710958468,13.95947522,84.794,84.723,10.6336]
[1770710959555,13.95947522,84.794,84.732,13.2076126]
[1770710959756,13.95947522,84.794,84.75,9.57178664]
[1770710961473,14.66102052,84.819,84.752,13.20745034]
[1770710962269,14.66102052,84.819,84.754,13.20366619]
[1770710962470,14.66102052,84.819,84.762,13.1626932]
[1770710964066,14.66102052,84.819,84.765,10.6283]
[1770710964663,14.66102052,84.819,84.765,23.78516994]
[1770710965069,14.66102052,84.819,84.768,10.6279]
[1770710965269,14.66102052,84.819,84.766,13.15686994]
[1770710967977,14.66102052,84.819,84.721,35.46]
[1770710967978,15.23348423,84.814,84.731,13.16765859]
[1770710968368,15.23348423,84.805,84.736,13.19857999]
[1770710968562,15.23348423,84.805,84.73,9.57178664]
[1770710968563,15.23348423,84.805,84.751,13.19857999]
[1770710969666,15.23348423,84.805,84.752,10.6299]
[1770710969874,15.23348423,84.805,84.753,13.19968568]
[1770710971274,15.23348423,84.805,84.755,13.54887245]
[1770710971480,21.2278,84.881,84.744,94.16]
[1770710971481,15.23348423,84.86,84.791,13.54999782]
[1770710972272,9.57178664,84.87,84.791,13.54999782]
[1770710972273,15.23348423,84.849,84.791,13.54999782]
[1770710972868,15.23348423,84.846,84.791,13.54999782]
[1770710973479,15.23348423,84.846,84.76,13.45437216]
[1770710973976,15.23348423,84.805,84.743,13.45437216]
[1770710975075,10.6238,84.802,84.743,13.45437216]
[1770710975283,15.23348423,84.801,84.743,13.45437216]
[1770710975476,15.23348423,84.801,84.7,235.96]
[1770710975477,15.23348423,84.801,84.711,13.51151452]
[1770710975673,10.6297,84.755,84.711,13.51151452]
[1770710975876,15.23348423,84.755,84.691,13.51151452]
[1770710977368,15.23348423,84.755,84.66,35.46]
[1770710977369,15.23348423,84.749,84.67,13.56416205]
[1770710978375,15.23348423,84.72,84.66,9.57178664]
[1770710978578,15.23348423,84.72,84.571,14.6668933]
[1770710978579,15.23348423,84.709,84.621,13.63004877]
[1770710978887,15.23348423,84.709,84.623,13.63004877]
[1770710979076,15.23348423,84.707,84.631,13.63004877]
[1770710979471,15.23348423,84.689,84.601,13.63138004]
[1770710979673,15.23348423,84.689,84.622,13.63138004]
[1770710980782,15.23348423,84.689,84.625,10.6459]
[1770710981082,15.23348423,84.707,84.641,14.00115775]
[1770710981680,10.6359,84.705,84.641,14.00115775]
[1770710981985,15.23348423,84.704,84.641,14.00115775]
[1770710984784,15.23348423,84.704,84.644,10.6436]
[1770710984984,15.23348423,84.704,84.645,13.91857062]
[1770710988480,35.46,84.739,84.61,23.50689314]
[1770710988481,35.46,84.693,84.61,23.50689314]
[1770710988682,9.57178664,84.7,84.591,13.9351065]
[1770710988683,15.23348423,84.68,84.591,13.9351065]
[1770710988987,15.23348423,84.68,84.593,13.9351065]
[1770710989688,9.57178664,84.73,84.631,13.99857438]
[1770710989893,14.07439349,84.714,84.631,13.99857438]
[1770710990192,14.07439349,84.7,84.631,13.99857438]
[1770710990790,14.07439349,84.694,84.631,13.99857438]
[1770710991787,10.6375,84.693,84.631,13.99857438]
[1770710992591,24.71189349,84.693,84.631,13.99857438]
[1770710993386,24.71189349,84.693,84.633,14.38684955]
[1770710995591,10.6381,84.688,84.633,14.38684955]
[1770710997386,24.71249349,84.688,84.633,14.38684955]
[1770710997793,14.07439349,84.687,84.633,14.38684955]
[1770710998396,10.6384,84.686,84.633,14.38684955]
[1770710998605,14.07439349,84.685,84.618,14.38480468]
[1770710999706,35.46,84.701,84.631,14.38567101]
[1770710999905,14.07439349,84.7,84.631,14.38567101]
[1770711000298,24.71149349,84.696,84.634,14.38567101]
[1770711000497,14.07439349,84.695,84.634,14.38567101]
[1770711001900,14.07439349,84.691,84.634,25.03047101]
[1770711002093,14.07439349,84.691,84.63,9.56900003]
[1770711002094,14.07439349,84.68,84.61,9.56900003]
[1770711003705,14.07439349,84.67,84.612,14.39479499]
[1770711003905,14.07439349,84.682,84.612,14.39479499]
[1770711004698,10.6392,84.68,84.624,10.6461]
[1770711005506,10.6398,84.674,84.624,10.6461]
[1770711005806,14.07439349,84.673,84.624,10.6461]
[1770711006703,10.6401,84.672,84.624,10.6461]
[1770711006902,14.07439349,84.671,84.624,10.6461]
[1770711007107,14.07439349,84.671,84.61,9.56900003]
[1770711007408,14.07439349,84.654,84.597,14.0549239]
[1770711008703,10.6433,84.647,84.601,10.6489]
[1770711009616,10.6435,84.645,84.597,14.0549239]
[1770711009800,21.2755,84.691,84.597,14.0549239]
[1770711009801,14.07439349,84.662,84.597,14.0549239]
[1770711010003,14.07439349,84.662,84.611,14.08211904]
[1770711010802,14.07439349,84.662,84.612,10.6476]
[1770711011204,14.07439349,84.662,84.612,24.72434881]
[1770711012109,14.07439349,84.705,84.612,14.07674881]
[1770711012307,14.07439349,84.705,84.631,14.07739994]
[1770711012511,10.6389,84.682,84.632,10.645]
[1770711014509,14.07439349,84.688,84.64,10.6441]
[1770711015310,10.6383,84.686,84.64,10.6441]
[1770711016616,10.6383,84.686,84.631,24.72249994]
[1770711017115,8.0,84.687,84.641,14.19430111]
[1770711018407,18.6373,84.694,84.641,14.19430111]
[1770711018707,18.6373,84.694,84.647,10.6432]
[1770711019112,24.71069349,84.703,84.648,14.19292228]
[1770711019415,14.07439349,84.703,84.661,10.6414]
[1770711021910,25.17951691,84.722,84.671,10.6401]
[1770711024809,25.17951691,84.722,84.674,10.6397]
[1770711027921,25.17951691,84.722,84.674,24.89351395]
[1770711028114,14.54571691,84.722,84.677,14.25381395]
[1770711028521,10.6323,84.735,84.681,14.23934683]
[1770711029227,25.17801691,84.735,84.681,14.23934683]
[1770711029426,25.17841691,84.731,84.684,10.6385]
[1770711030622,14.54571691,84.731,84.692,10.6386]
[1770711030820,14.54571691,84.731,84.68,9.56900003]
[1770711031220,14.54571691,84.731,84.667,205.43330505]
[1770711031221,14.54571691,84.719,84.669,14.25330505]
[1770711031828,14.54571691,84.734,84.684,10.6395]
[1770711032129,14.54571691,84.734,84.684,14.2537192]
[1770711032527,14.54571691,84.734,84.694,10.6384]
[1770711033225,14.54571691,84.734,84.684,14.2537192]
[1770711033226,14.54571691,84.732,84.684,14.2537192]
[1770711033637,14.54571691,84.732,84.687,14.54388632]
[1770711034727,14.54571691,84.732,84.688,10.639]
[1770711036128,8.0,84.738,84.697,10.6379]
[1770711041231,14.54571691,84.746,84.705,10.6369]
[1770711041427,14.54571691,84.746,84.662,35.46]
[1770711041428,14.54571691,84.746,84.683,14.79246371]
[1770711041627,14.54571691,84.736,84.683,14.79246371]
[1770711041833,14.54571691,84.736,84.655,14.79246371]
[1770711042838,14.54571691,84.736,84.62,14.6668933]
[1770711042839,14.54571691,84.718,84.653,14.78841272]
[1770711043133,9.56900003,84.72,84.653,14.78841272]
[1770711043134,14.54571691,84.716,84.653,14.78841272]
[1770711043837,25.18331691,84.701,84.653,25.43191272]
[1770711044039,14.54571691,84.7,84.653,10.6435]